[Event "*** Titled Tuesday 3|2 Blitz (Late)"]
[Site "Chess.com"]
[Date "2017.01.03"]
[Round "2"]
[White "penguingm1"]
[Black "Hamisandwich"]
[Result "1-0"]
[WhiteElo "2677"]
[BlackElo "2384"]
[TimeControl "180+2"]
[EndTime "17:20:41 PST"]
[Termination "penguingm1 won by checkmate"]

1. d4 {[%clk 0:03:00.4]} 1... Nf6 {[%clk 0:03:01]} 2. c4 {[%clk 0:03:01.7]} 2...
b6 {[%clk 0:03:02.6]} 3. Nc3 {[%clk 0:03:02.3]} 3... Bb7 {[%clk 0:03:04.2]} 4.
Qc2 {[%clk 0:03:03]} 4... d5 {[%clk 0:03:05.4]} 5. cxd5 {[%clk 0:03:03.4]} 5...
Nxd5 {[%clk 0:03:07.3]} 6. e4 {[%clk 0:03:03.7]} 6... Nxc3 {[%clk 0:03:08.9]} 7.
bxc3 {[%clk 0:03:04.4]} 7... e6 {[%clk 0:03:10.5]} 8. Nf3 {[%clk 0:03:05.5]}
8... Be7 {[%clk 0:03:11.2]} 9. Bb5+ {[%clk 0:03:04.5]} 9... c6 {[%clk
0:03:12.5]} 10. Bd3 {[%clk 0:03:06]} 10... c5 {[%clk 0:03:13.8]} 11. O-O {[%clk
0:03:07]} 11... cxd4 {[%clk 0:03:15.2]} 12. cxd4 {[%clk 0:03:08.9]} 12... O-O
{[%clk 0:03:15.7]} 13. Be3 {[%clk 0:03:06.5]} 13... Nc6 {[%clk 0:03:16.4]} 14.
Qd2 {[%clk 0:03:06]} 14... Rc8 {[%clk 0:02:38.7]} 15. Rad1 {[%clk 0:02:54.1]}
15... Na5 {[%clk 0:02:19.9]} 16. Qe2 {[%clk 0:02:47.2]} 16... Qd7 {[%clk
0:02:13.2]} 17. Ne5 {[%clk 0:01:41.4]} 17... Qa4 {[%clk 0:02:08.6]} 18. f4
{[%clk 0:01:37.8]} 18... Bf6 {[%clk 0:01:48.4]} 19. f5 {[%clk 0:00:52.8]} 19...
exf5 {[%clk 0:01:41]} 20. Rxf5 {[%clk 0:00:52.5]} 20... Bxe5 {[%clk 0:01:40.9]}
21. Rxe5 {[%clk 0:00:49.7]} 21... Nc4 {[%clk 0:01:37.6]} 22. Bxc4 {[%clk
0:00:32.8]} 22... Rxc4 {[%clk 0:01:37.6]} 23. h3 {[%clk 0:00:31.3]} 23... Rc2
{[%clk 0:01:13.9]} 24. Qg4 {[%clk 0:00:18.6]} 24... Bc8 {[%clk 0:01:06.3]} 25.
Qf3 {[%clk 0:00:17.6]} 25... Rc3 {[%clk 0:01:04.2]} 26. Re1 {[%clk 0:00:17.1]}
26... Qxa2 {[%clk 0:00:57.8]} 27. Rg5 {[%clk 0:00:18.2]} 27... g6 {[%clk
0:00:47.1]} 28. d5 {[%clk 0:00:18.6]} 28... Qa3 {[%clk 0:00:37.4]} 29. Qf2
{[%clk 0:00:19.2]} 29... f6 {[%clk 0:00:24.6]} 30. Rg3 {[%clk 0:00:17.6]} 30...
Qb3 {[%clk 0:00:23.5]} 31. Rf3 {[%clk 0:00:18.5]} 31... Rc2 {[%clk 0:00:23]} 32.
Qg3 {[%clk 0:00:19.4]} 32... Qb4 {[%clk 0:00:22.7]} 33. Bh6 {[%clk 0:00:19.7]}
33... Rf7 {[%clk 0:00:20.7]} 34. Kh2 {[%clk 0:00:19.5]} 34... Qe7 {[%clk
0:00:20.2]} 35. e5 {[%clk 0:00:16]} 35... fxe5 {[%clk 0:00:19.3]} 36. Rxf7
{[%clk 0:00:17.4]} 36... Qxf7 {[%clk 0:00:21.2]} 37. Qxe5 {[%clk 0:00:18.7]}
37... Bd7 {[%clk 0:00:17.7]} 38. Rf1 {[%clk 0:00:20]} 38... Bf5 {[%clk
0:00:17.3]} 39. d6 {[%clk 0:00:20.7]} 39... Qd7 {[%clk 0:00:16.7]} 40. Re1
{[%clk 0:00:20.8]} 40... Rc8 {[%clk 0:00:17.6]} 41. Qf6 {[%clk 0:00:21.7]} 41...
Qf7 {[%clk 0:00:17.2]} 42. Qd4 {[%clk 0:00:22.9]} 42... Be6 {[%clk 0:00:17.3]}
43. Rf1 {[%clk 0:00:23.6]} 43... Bf5 {[%clk 0:00:18.7]} 44. Re1 {[%clk
0:00:22.6]} 44... Be6 {[%clk 0:00:19.3]} 45. Rxe6 {[%clk 0:00:24.1]} 45... Qxe6
{[%clk 0:00:20.2]} 46. Qg7# {[%clk 0:00:25.1]} 1-0

[Event "*** Titled Tuesday 3|2 Blitz (Late)"]
[Site "Chess.com"]
[Date "2017.01.03"]
[Round "2"]
[White "ItalianMachine"]
[Black "dretch"]
[Result "0-1"]
[WhiteElo "2227"]
[BlackElo "2590"]
[TimeControl "180+2"]
[EndTime "17:20:41 PST"]
[Termination "dretch won by resignation"]

1. e4 {[%clk 0:03:02]} 1... e6 {[%clk 0:03:01.2]} 2. d4 {[%clk 0:02:57]} 2... d5
{[%clk 0:03:02.7]} 3. Nd2 {[%clk 0:02:56.7]} 3... c5 {[%clk 0:03:03.6]} 4. dxc5
{[%clk 0:02:56.4]} 4... Bxc5 {[%clk 0:03:04.2]} 5. exd5 {[%clk 0:02:55.2]} 5...
Qxd5 {[%clk 0:03:04.3]} 6. Ngf3 {[%clk 0:02:56.4]} 6... Nf6 {[%clk 0:03:00.2]}
7. Bc4 {[%clk 0:02:57]} 7... Qh5 {[%clk 0:02:59.9]} 8. O-O {[%clk 0:02:57.9]}
8... O-O {[%clk 0:03:00.3]} 9. Qe2 {[%clk 0:02:56.3]} 9... Nbd7 {[%clk
0:02:54.4]} 10. Ne4 {[%clk 0:02:55.1]} 10... Nxe4 {[%clk 0:02:53.4]} 11. Qxe4
{[%clk 0:02:55.9]} 11... Nf6 {[%clk 0:02:54.9]} 12. Qe5 {[%clk 0:02:55.9]} 12...
b6 {[%clk 0:02:53.2]} 13. Qxh5 {[%clk 0:02:54.1]} 13... Nxh5 {[%clk 0:02:53.9]}
14. Ne5 {[%clk 0:02:36.1]} 14... Rd8 {[%clk 0:02:53.3]} 15. Nd3 {[%clk
0:02:19.5]} 15... Be7 {[%clk 0:02:48.2]} 16. Be3 {[%clk 0:02:19.9]} 16... Bb7
{[%clk 0:02:46.6]} 17. Rad1 {[%clk 0:02:16]} 17... Rac8 {[%clk 0:02:46.4]} 18.
Bb3 {[%clk 0:02:17.2]} 18... Ba6 {[%clk 0:02:45.3]} 19. Rfe1 {[%clk 0:02:16]}
19... Bxd3 {[%clk 0:02:41.8]} 20. cxd3 {[%clk 0:02:16.7]} 20... Nf6 {[%clk
0:02:40.9]} 21. Bc4 {[%clk 0:02:04.4]} 21... Nd5 {[%clk 0:02:37.3]} 22. Bd2
{[%clk 0:02:01.7]} 22... Bf6 {[%clk 0:02:36.1]} 23. Rb1 {[%clk 0:01:58.4]} 23...
Rc7 {[%clk 0:02:16.4]} 24. Rec1 {[%clk 0:01:53.8]} 24... g6 {[%clk 0:02:10]} 25.
Bh6 {[%clk 0:01:47.7]} 25... Rcd7 {[%clk 0:01:58.9]} 26. a3 {[%clk 0:01:40]}
26... g5 {[%clk 0:01:47.9]} 27. h4 {[%clk 0:01:40.7]} 27... gxh4 {[%clk
0:01:47.3]} 28. Re1 {[%clk 0:01:23.4]} 28... Ne7 {[%clk 0:01:40.2]} 29. Bb5
{[%clk 0:01:13.6]} 29... Rd5 {[%clk 0:01:39.8]} 30. Bc4 {[%clk 0:01:14.5]} 30...
Rh5 {[%clk 0:01:38.1]} 31. Bf4 {[%clk 0:01:15.7]} 31... Ng6 {[%clk 0:01:37]} 32.
Bh2 {[%clk 0:01:09.8]} 32... b5 {[%clk 0:01:37.5]} 33. Ba2 {[%clk 0:00:55.3]}
33... Rxd3 {[%clk 0:01:37.8]} 34. Bb8 {[%clk 0:00:43.5]} 34... a5 {[%clk
0:01:31.8]} 35. Bc7 {[%clk 0:00:44]} 35... a4 {[%clk 0:01:31.3]} 36. b3 {[%clk
0:00:41.9]} 36... Rf5 {[%clk 0:01:19.3]} 37. bxa4 {[%clk 0:00:41.2]} 37... bxa4
{[%clk 0:01:08.4]} 38. Rb8+ {[%clk 0:00:41.6]} 38... Kg7 {[%clk 0:01:07.6]} 39.
Bb1 {[%clk 0:00:43.1]} 39... Rxa3 {[%clk 0:01:07.2]} 40. Bxf5 {[%clk 0:00:43.5]}
40... exf5 {[%clk 0:01:08.9]} 41. Ra8 {[%clk 0:00:37.3]} 41... Ra2 {[%clk
0:00:58.9]} 42. Bb6 {[%clk 0:00:31.4]} 42... Ne5 {[%clk 0:00:39.6]} 43. Rd1
{[%clk 0:00:07.1]} 43... Ng4 {[%clk 0:00:31.8]} 44. Bd4 {[%clk 0:00:08]} 44...
Bxd4 {[%clk 0:00:31.5]} 45. Rxd4 {[%clk 0:00:06.6]} 45... Ra1+ {[%clk
0:00:32.5]} 0-1

[Event "*** Titled Tuesday 3|2 Blitz (Late)"]
[Site "Chess.com"]
[Date "2017.01.03"]
[Round "2"]
[White "amurdercastle"]
[Black "Frolik67"]
[Result "0-1"]
[WhiteElo "2341"]
[BlackElo "2299"]
[TimeControl "180+2"]
[EndTime "17:20:43 PST"]
[Termination "Frolik67 won by resignation"]

1. d4 {[%clk 0:03:02]} 1... Nf6 {[%clk 0:02:58.6]} 2. c4 {[%clk 0:03:02.4]} 2...
c5 {[%clk 0:02:59.8]} 3. d5 {[%clk 0:03:00.2]} 3... b5 {[%clk 0:03:01]} 4. cxb5
{[%clk 0:03:00.1]} 4... a6 {[%clk 0:03:02.4]} 5. bxa6 {[%clk 0:03:02]} 5... Bxa6
{[%clk 0:02:55.1]} 6. Nc3 {[%clk 0:03:02.3]} 6... g6 {[%clk 0:02:55.6]} 7. e4
{[%clk 0:03:03.2]} 7... d6 {[%clk 0:02:54]} 8. Bxa6 {[%clk 0:03:00.9]} 8... Nxa6
{[%clk 0:02:55.9]} 9. Nf3 {[%clk 0:03:02.2]} 9... Bg7 {[%clk 0:02:57.1]} 10. O-O
{[%clk 0:03:03.5]} 10... O-O {[%clk 0:02:58.4]} 11. a4 {[%clk 0:03:03.9]} 11...
Qa5 {[%clk 0:02:58.4]} 12. Bd2 {[%clk 0:02:59]} 12... Rfb8 {[%clk 0:02:58.5]}
13. Nb5 {[%clk 0:02:56.4]} 13... Qb6 {[%clk 0:02:58.7]} 14. Qc2 {[%clk
0:02:56.3]} 14... Rb7 {[%clk 0:02:44.4]} 15. Ra2 {[%clk 0:02:33.3]} 15... Nb8
{[%clk 0:02:41.9]} 16. b3 {[%clk 0:02:25.6]} 16... Nbd7 {[%clk 0:02:40.8]} 17.
Bc3 {[%clk 0:02:24.2]} 17... Ra6 {[%clk 0:02:35.3]} 18. Nd2 {[%clk 0:02:24.7]}
18... Qd8 {[%clk 0:02:32.4]} 19. Nc4 {[%clk 0:02:20.4]} 19... Nxe4 {[%clk
0:02:24]} 20. Bxg7 {[%clk 0:02:08]} 20... Kxg7 {[%clk 0:02:23.2]} 21. Re1 {[%clk
0:02:03.7]} 21... Nef6 {[%clk 0:02:20.9]} 22. Ne3 {[%clk 0:02:00.1]} 22... Kf8
{[%clk 0:02:16.9]} 23. Raa1 {[%clk 0:01:58]} 23... Qa8 {[%clk 0:02:15.2]} 24.
Rad1 {[%clk 0:01:57.3]} 24... Ne5 {[%clk 0:02:13.6]} 25. f4 {[%clk 0:01:56.7]}
25... Neg4 {[%clk 0:02:12.9]} 26. Nxg4 {[%clk 0:01:57.2]} 26... Nxg4 {[%clk
0:02:14]} 27. h3 {[%clk 0:01:54]} 27... Nf6 {[%clk 0:02:12.9]} 28. g4 {[%clk
0:01:55.4]} 28... Qc8 {[%clk 0:02:11.7]} 29. Qc3 {[%clk 0:01:51.1]} 29... Kg8
{[%clk 0:02:05.4]} 30. Kf2 {[%clk 0:01:47.6]} 30... Rab6 {[%clk 0:02:00.9]} 31.
Re3 {[%clk 0:01:45.5]} 31... Qd7 {[%clk 0:01:59.3]} 32. Qc4 {[%clk 0:01:42.1]}
32... Rxb5 {[%clk 0:01:57.7]} 33. axb5 {[%clk 0:01:44]} 33... Rxb5 {[%clk
0:01:59]} 34. Rde1 {[%clk 0:01:43.9]} 34... Rb4 {[%clk 0:01:58.4]} 35. Qc1
{[%clk 0:01:29]} 35... Rxf4+ {[%clk 0:01:56.2]} 36. Kg3 {[%clk 0:01:29.8]} 36...
Nxd5 {[%clk 0:01:49]} 37. Rxe7 {[%clk 0:01:19.2]} 37... Qb5 {[%clk 0:01:34.1]}
38. Re8+ {[%clk 0:01:15.2]} 38... Kg7 {[%clk 0:01:34.7]} 39. Qb2+ {[%clk
0:01:16.5]} 39... Rd4 {[%clk 0:01:35.7]} 40. Qf2 {[%clk 0:01:01.3]} 40... Qxb3+
{[%clk 0:01:32.6]} 41. Kh2 {[%clk 0:01:01]} 41... Rd3 {[%clk 0:01:27]} 42. h4
{[%clk 0:00:50.8]} 42... Qb4 {[%clk 0:01:14.9]} 43. R8e4 {[%clk 0:00:45.7]}
43... Qd2 {[%clk 0:01:13.8]} 44. R1e2 {[%clk 0:00:46.2]} 44... Qc1 {[%clk
0:01:10.5]} 45. g5 {[%clk 0:00:46.9]} 45... Rd1 {[%clk 0:01:07.8]} 46. Kg2
{[%clk 0:00:34.7]} 46... Qa1 {[%clk 0:00:58.7]} 47. Re7 {[%clk 0:00:18.7]} 47...
Nxe7 {[%clk 0:00:56.5]} 48. Rxe7 {[%clk 0:00:20.6]} 48... Qa8+ {[%clk 0:00:54]}
49. Kh2 {[%clk 0:00:21]} 49... Qh1+ {[%clk 0:00:52.8]} 50. Kg3 {[%clk
0:00:21.7]} 50... Qg1+ {[%clk 0:00:53.1]} 51. Qxg1 {[%clk 0:00:22.1]} 51...
Rxg1+ {[%clk 0:00:54.1]} 52. Kf2 {[%clk 0:00:24]} 52... Rg4 {[%clk 0:00:54.7]}
53. Rd7 {[%clk 0:00:24.8]} 53... Rxh4 {[%clk 0:00:53.5]} 54. Rxd6 {[%clk
0:00:26.7]} 54... Rd4 {[%clk 0:00:53.4]} 55. Rd5 {[%clk 0:00:28.6]} 55... Rxd5
{[%clk 0:00:54.4]} 0-1

[Event "*** Titled Tuesday 3|2 Blitz (Late)"]
[Site "Chess.com"]
[Date "2017.01.03"]
[Round "2"]
[White "rithwik2002"]
[Black "DiamondCrusher22"]
[Result "1-0"]
[WhiteElo "1723"]
[BlackElo "1834"]
[TimeControl "180+2"]
[EndTime "17:20:52 PST"]
[Termination "rithwik2002 won by checkmate"]

1. e4 {[%clk 0:03:02]} 1... e5 {[%clk 0:02:59.8]} 2. Nf3 {[%clk 0:02:57.3]} 2...
Nc6 {[%clk 0:02:59.3]} 3. Bc4 {[%clk 0:02:58.8]} 3... Nf6 {[%clk 0:02:59.9]} 4.
Ng5 {[%clk 0:02:54.4]} 4... d5 {[%clk 0:03:00.4]} 5. exd5 {[%clk 0:02:56.3]}
5... Na5 {[%clk 0:03:00.6]} 6. Bb5+ {[%clk 0:02:46.4]} 6... c6 {[%clk 0:03:02]}
7. dxc6 {[%clk 0:02:43.3]} 7... bxc6 {[%clk 0:03:03.9]} 8. Bd3 {[%clk
0:02:41.8]} 8... Bd6 {[%clk 0:03:02.9]} 9. Nc3 {[%clk 0:02:37.9]} 9... h6 {[%clk
0:02:57.2]} 10. Nge4 {[%clk 0:02:36]} 10... Be7 {[%clk 0:02:45]} 11. Nxf6+
{[%clk 0:02:32.9]} 11... Bxf6 {[%clk 0:02:45.3]} 12. O-O {[%clk 0:02:30.3]}
12... O-O {[%clk 0:02:45.3]} 13. b3 {[%clk 0:02:26.5]} 13... Re8 {[%clk
0:02:19.8]} 14. Qf3 {[%clk 0:02:21.9]} 14... Bb7 {[%clk 0:02:07.2]} 15. Ne4
{[%clk 0:02:16.7]} 15... Be7 {[%clk 0:01:58.4]} 16. Qf5 {[%clk 0:02:05.2]} 16...
g6 {[%clk 0:01:11.9]} 17. Qxe5 {[%clk 0:01:49.1]} 17... Bg5 {[%clk 0:01:02.9]}
18. Qc3 {[%clk 0:01:32.6]} 18... Rxe4 {[%clk 0:00:42.4]} 19. Bb2 {[%clk
0:00:53.7]} 19... Bf6 {[%clk 0:00:26]} 20. Qxf6 {[%clk 0:00:39.4]} 20... Qxf6
{[%clk 0:00:26.4]} 21. Bxf6 {[%clk 0:00:41.3]} 21... Rg4 {[%clk 0:00:13.4]} 22.
Bc3 {[%clk 0:00:32.3]} 22... Rg5 {[%clk 0:00:08.3]} 23. f4 {[%clk 0:00:20.4]}
23... Rh5 {[%clk 0:00:07.1]} 24. Be2 {[%clk 0:00:18]} 24... Rd5 {[%clk
0:00:05.1]} 25. Bf3 {[%clk 0:00:15.5]} 25... Rf5 {[%clk 0:00:05.9]} 26. Be4
{[%clk 0:00:13.9]} 26... Rh5 {[%clk 0:00:06.7]} 27. Bf3 {[%clk 0:00:12.7]} 27...
Rf5 {[%clk 0:00:07.6]} 28. Be4 {[%clk 0:00:13.8]} 28... Rh5 {[%clk 0:00:08.6]}
29. g4 {[%clk 0:00:13.7]} 29... Rh4 {[%clk 0:00:06.3]} 30. Bxa5 {[%clk
0:00:12.9]} 30... Rxg4+ {[%clk 0:00:07.8]} 31. Kh1 {[%clk 0:00:14]} 31... Re8
{[%clk 0:00:08.8]} 32. Bg2 {[%clk 0:00:12.9]} 32... Re2 {[%clk 0:00:08.2]} 33.
Rg1 {[%clk 0:00:13.3]} 33... Rexg2 {[%clk 0:00:07.7]} 34. Rxg2 {[%clk
0:00:14.3]} 34... c5 {[%clk 0:00:09.2]} 35. Rg1 {[%clk 0:00:14.6]} 35... h5
{[%clk 0:00:09]} 36. h3 {[%clk 0:00:15.7]} 36... Rg3 {[%clk 0:00:07.9]} 37. Kh2
{[%clk 0:00:16.7]} 37... Rf3 {[%clk 0:00:07.9]} 38. Re2 {[%clk 0:00:13.5]} 38...
Rxf4 {[%clk 0:00:08.9]} 39. Bc3 {[%clk 0:00:13.2]} 39... f6 {[%clk 0:00:09.9]}
40. Re8+ {[%clk 0:00:12.6]} 40... Kf7 {[%clk 0:00:11.1]} 41. Rge1 {[%clk
0:00:12.9]} 41... Rf2+ {[%clk 0:00:11.6]} 42. Kg1 {[%clk 0:00:13.9]} 42... Rg2+
{[%clk 0:00:11.8]} 43. Kf1 {[%clk 0:00:15.3]} 43... Rh2 {[%clk 0:00:06.9]} 44.
R1e7# {[%clk 0:00:15.5]} 1-0

[Event "*** Titled Tuesday 3|2 Blitz (Late)"]
[Site "Chess.com"]
[Date "2017.01.03"]
[Round "2"]
[White "AllStarShark"]
[Black "chito89"]
[Result "0-1"]
[WhiteElo "2211"]
[BlackElo "2489"]
[TimeControl "180+2"]
[EndTime "17:21:07 PST"]
[Termination "chito89 won by resignation"]

1. d4 {[%clk 0:03:02]} 1... Nf6 {[%clk 0:02:58.5]} 2. Bg5 {[%clk 0:03:02.7]}
2... d5 {[%clk 0:02:53.3]} 3. Bxf6 {[%clk 0:03:03.6]} 3... gxf6 {[%clk
0:02:53.6]} 4. c4 {[%clk 0:03:03.4]} 4... dxc4 {[%clk 0:02:49.7]} 5. e3 {[%clk
0:02:59.8]} 5... c5 {[%clk 0:02:48.7]} 6. Bxc4 {[%clk 0:02:41.4]} 6... cxd4
{[%clk 0:02:47.2]} 7. Qxd4 {[%clk 0:02:31.4]} 7... Qxd4 {[%clk 0:02:45.5]} 8.
exd4 {[%clk 0:02:33.3]} 8... Nc6 {[%clk 0:02:46.7]} 9. Ne2 {[%clk 0:02:34.4]}
9... Bg7 {[%clk 0:02:42.8]} 10. Nbc3 {[%clk 0:02:31.4]} 10... O-O {[%clk
0:02:33.5]} 11. O-O {[%clk 0:02:25.7]} 11... Rd8 {[%clk 0:02:31.9]} 12. Rfd1
{[%clk 0:02:19.2]} 12... a6 {[%clk 0:02:24.6]} 13. a3 {[%clk 0:02:14.3]} 13...
b5 {[%clk 0:02:24.4]} 14. Bd5 {[%clk 0:02:13.5]} 14... Bb7 {[%clk 0:02:22.6]}
15. Rac1 {[%clk 0:02:07.2]} 15... Rac8 {[%clk 0:02:12]} 16. Bf3 {[%clk
0:02:00.5]} 16... f5 {[%clk 0:02:06.7]} 17. Bxc6 {[%clk 0:01:52.2]} 17... Bxc6
{[%clk 0:02:06.8]} 18. d5 {[%clk 0:01:42.9]} 18... Bb7 {[%clk 0:02:05.2]} 19.
Rd3 {[%clk 0:01:31.6]} 19... Rc4 {[%clk 0:01:43.9]} 20. Rcd1 {[%clk 0:01:28.9]}
20... Bf6 {[%clk 0:01:34.4]} 21. Ng3 {[%clk 0:01:16.1]} 21... Bc8 {[%clk
0:01:16.2]} 22. Nge2 {[%clk 0:01:04.7]} 22... Bd7 {[%clk 0:01:15.1]} 23. Nd4
{[%clk 0:00:58.6]} 23... Rdc8 {[%clk 0:01:15.3]} 24. g3 {[%clk 0:00:52.3]} 24...
f4 {[%clk 0:01:10.3]} 25. f3 {[%clk 0:00:41.5]} 25... fxg3 {[%clk 0:01:10.1]}
26. hxg3 {[%clk 0:00:43.4]} 26... Be5 {[%clk 0:01:06.8]} 27. Kf2 {[%clk
0:00:39.2]} 27... Bd6 {[%clk 0:01:07.3]} 28. Ne4 {[%clk 0:00:32.3]} 28... Bb8
{[%clk 0:01:07.4]} 29. Ne2 {[%clk 0:00:27.5]} 29... Rc2 {[%clk 0:01:05]} 30.
R1d2 {[%clk 0:00:27.3]} 30... Ba7+ {[%clk 0:01:01.5]} 31. Kg2 {[%clk 0:00:27.5]}
31... f5 {[%clk 0:01:01.3]} 32. Rxc2 {[%clk 0:00:21.5]} 32... Rxc2 {[%clk
0:00:57.4]} 33. Rd2 {[%clk 0:00:22.9]} 33... Rc8 {[%clk 0:00:53.6]} 34. N4c3
{[%clk 0:00:23.9]} 34... Kf7 {[%clk 0:00:52]} 35. Nd4 {[%clk 0:00:25]} 35... Kf6
{[%clk 0:00:50.6]} 36. f4 {[%clk 0:00:26.4]} 36... Bc5 {[%clk 0:00:47.7]} 37.
Nf3 {[%clk 0:00:27.5]} 37... Bxa3 {[%clk 0:00:45.4]} 38. bxa3 {[%clk 0:00:25.6]}
38... Rxc3 {[%clk 0:00:45.4]} 39. Ne5 {[%clk 0:00:27.1]} 39... Be8 {[%clk
0:00:45.6]} 40. g4 {[%clk 0:00:24]} 40... fxg4 {[%clk 0:00:44.5]} 41. Nxg4+
{[%clk 0:00:25.9]} 41... Kf5 {[%clk 0:00:45.7]} 42. Nf2 {[%clk 0:00:18.5]} 42...
Kxf4 {[%clk 0:00:43.7]} 43. d6 {[%clk 0:00:17.6]} 43... Bc6+ {[%clk 0:00:43.7]}
44. Kf1 {[%clk 0:00:17]} 44... exd6 {[%clk 0:00:44]} 45. Rxd6 {[%clk 0:00:17.7]}
45... Bf3 {[%clk 0:00:44.7]} 46. Nd3+ {[%clk 0:00:17.6]} 46... Ke3 {[%clk
0:00:45.4]} 47. Ne1 {[%clk 0:00:18.9]} 47... Rc1 {[%clk 0:00:46]} 48. Re6+
{[%clk 0:00:19.1]} 48... Be4 {[%clk 0:00:46.6]} 49. Re7 {[%clk 0:00:20.1]} 49...
a5 {[%clk 0:00:47]} 50. Re5 {[%clk 0:00:20.9]} 50... b4 {[%clk 0:00:47.7]} 51.
axb4 {[%clk 0:00:21.8]} 51... axb4 {[%clk 0:00:48.2]} 52. Rb5 {[%clk 0:00:22.9]}
52... Bd3+ {[%clk 0:00:48.4]} 0-1

[Event "*** Titled Tuesday 3|2 Blitz (Late)"]
[Site "Chess.com"]
[Date "2017.01.03"]
[Round "2"]
[White "bugsbunny444"]
[Black "Assasin14"]
[Result "1/2-1/2"]
[WhiteElo "2334"]
[BlackElo "2247"]
[TimeControl "180+2"]
[EndTime "17:21:44 PST"]
[Termination "Game drawn - insufficient material"]

1. Nf3 {[%clk 0:03:02]} 1... Nf6 {[%clk 0:02:59.8]} 2. c4 {[%clk 0:03:03.4]}
2... c6 {[%clk 0:03:00.4]} 3. g3 {[%clk 0:03:04.7]} 3... d5 {[%clk 0:03:01.6]}
4. Bg2 {[%clk 0:03:05.2]} 4... Bf5 {[%clk 0:03:00.9]} 5. cxd5 {[%clk 0:03:05.9]}
5... cxd5 {[%clk 0:03:00.7]} 6. Qb3 {[%clk 0:03:06.3]} 6... Qb6 {[%clk
0:03:00.9]} 7. Nc3 {[%clk 0:03:07.1]} 7... e6 {[%clk 0:02:57.7]} 8. d3 {[%clk
0:03:08.1]} 8... Nbd7 {[%clk 0:02:42.3]} 9. Be3 {[%clk 0:03:08.9]} 9... Qxb3
{[%clk 0:02:42.6]} 10. axb3 {[%clk 0:03:10.8]} 10... a6 {[%clk 0:02:42.6]} 11.
O-O {[%clk 0:02:46.4]} 11... Be7 {[%clk 0:02:33.6]} 12. Nh4 {[%clk 0:02:15.1]}
12... Bg6 {[%clk 0:02:27.7]} 13. Rfc1 {[%clk 0:02:12.1]} 13... O-O {[%clk
0:02:25.6]} 14. Nxg6 {[%clk 0:02:11]} 14... hxg6 {[%clk 0:02:27.5]} 15. Na4
{[%clk 0:01:57.3]} 15... Rfc8 {[%clk 0:02:23.7]} 16. Bb6 {[%clk 0:01:58]} 16...
Kf8 {[%clk 0:02:01.3]} 17. e4 {[%clk 0:01:54.4]} 17... dxe4 {[%clk 0:01:45.4]}
18. dxe4 {[%clk 0:01:54.9]} 18... e5 {[%clk 0:01:46.4]} 19. Bh3 {[%clk 0:01:52]}
19... Ke8 {[%clk 0:01:38.4]} 20. Kg2 {[%clk 0:01:27.2]} 20... Nxe4 {[%clk
0:01:29.7]} 21. Rxc8+ {[%clk 0:00:36.3]} 21... Rxc8 {[%clk 0:01:29.7]} 22. Rd1
{[%clk 0:00:24.4]} 22... f5 {[%clk 0:01:24.6]} 23. g4 {[%clk 0:00:21.3]} 23...
Nxb6 {[%clk 0:00:55.5]} 24. Nxb6 {[%clk 0:00:22.2]} 24... Rc2 {[%clk 0:00:49.6]}
25. gxf5 {[%clk 0:00:11.4]} 25... Nxf2 {[%clk 0:00:49.6]} 26. Rd5 {[%clk
0:00:06.9]} 26... Nd3+ {[%clk 0:00:21.8]} 27. Kg3 {[%clk 0:00:03.9]} 27... Nf4
{[%clk 0:00:22.1]} 28. Rxe5 {[%clk 0:00:05.1]} 28... Nxh3 {[%clk 0:00:22.8]} 29.
Kxh3 {[%clk 0:00:05.9]} 29... Kf7 {[%clk 0:00:22]} 30. fxg6+ {[%clk 0:00:06.5]}
30... Kf6 {[%clk 0:00:23.2]} 31. Re3 {[%clk 0:00:04.6]} 31... Bd6 {[%clk
0:00:23]} 32. Nd5+ {[%clk 0:00:03.5]} 32... Kxg6 {[%clk 0:00:24.1]} 33. Re6+
{[%clk 0:00:05.2]} 33... Kf7 {[%clk 0:00:22.5]} 34. Rxd6 {[%clk 0:00:06.6]}
34... Rd2 {[%clk 0:00:23.7]} 35. Rd7+ {[%clk 0:00:07.2]} 35... Ke6 {[%clk
0:00:23.3]} 36. Rxb7 {[%clk 0:00:03.5]} 36... Rxd5 {[%clk 0:00:21.4]} 37. Rb6+
{[%clk 0:00:04.8]} 37... Rd6 {[%clk 0:00:20.5]} 38. Rxd6+ {[%clk 0:00:05.9]}
38... Kxd6 {[%clk 0:00:22.4]} 39. Kg4 {[%clk 0:00:07.8]} 39... Ke6 {[%clk
0:00:24]} 40. Kg5 {[%clk 0:00:08.3]} 40... Kf7 {[%clk 0:00:25.2]} 41. b4 {[%clk
0:00:09.3]} 41... g6 {[%clk 0:00:24.8]} 42. Kh6 {[%clk 0:00:07.7]} 42... Kf6
{[%clk 0:00:25.5]} 43. h4 {[%clk 0:00:05.6]} 43... Kf7 {[%clk 0:00:24.6]} 44.
Kh7 {[%clk 0:00:05.7]} 44... Kf6 {[%clk 0:00:24.8]} 45. Kh6 {[%clk 0:00:05]}
45... Kf7 {[%clk 0:00:23.4]} 46. Kh7 {[%clk 0:00:06.2]} 46... Kf6 {[%clk
0:00:24.5]} 47. Kg8 {[%clk 0:00:05.7]} 47... Kf5 {[%clk 0:00:22.2]} 48. Kf7
{[%clk 0:00:06.4]} 48... Kg4 {[%clk 0:00:19.9]} 49. Kxg6 {[%clk 0:00:07.2]}
49... Kxh4 {[%clk 0:00:21.8]} 50. Kf6 {[%clk 0:00:09]} 50... Kg4 {[%clk
0:00:23.4]} 51. Ke6 {[%clk 0:00:10.9]} 51... Kf4 {[%clk 0:00:25.1]} 52. Kd6
{[%clk 0:00:12.8]} 52... Ke4 {[%clk 0:00:26.8]} 53. Kc6 {[%clk 0:00:14.7]} 53...
Kd4 {[%clk 0:00:28.4]} 54. Kb6 {[%clk 0:00:14.1]} 54... Kc4 {[%clk 0:00:29.6]}
55. Ka5 {[%clk 0:00:12]} 55... Kb3 {[%clk 0:00:30.4]} 56. Kxa6 {[%clk
0:00:05.4]} 56... Kxb4 {[%clk 0:00:31.4]} 57. Kb6 {[%clk 0:00:06]} 57... Kb3
{[%clk 0:00:33.3]} 58. Kc5 {[%clk 0:00:06.7]} 58... Kxb2 {[%clk 0:00:35.2]}
1/2-1/2